[Event "*** Qualifier 3: Titled Tuesday 3|2 Blitz"]
[Site "Chess.com"]
[Date "2017.04.18"]
[Round "9"]
[White "dhanushbharadwaj"]
[Black "XiaoKangZhong"]
[Result "0-1"]
[WhiteElo "2412"]
[BlackElo "2001"]
[TimeControl "180+2"]
[EndTime "14:58:00 PDT"]
[Termination "XiaoKangZhong won by checkmate"]

1. b3 {[%clk 0:03:02]} 1... g6 {[%clk 0:02:48.3]} 2. Bb2 {[%clk 0:03:02.6]} 2...
Nf6 {[%clk 0:02:50.2]} 3. e4 {[%clk 0:03:03.7]} 3... Bg7 {[%clk 0:02:49.1]} 4.
Nf3 {[%clk 0:03:04.5]} 4... O-O {[%clk 0:02:49.6]} 5. Nc3 {[%clk 0:03:05.3]}
5... c6 {[%clk 0:02:49.7]} 6. e5 {[%clk 0:03:01.4]} 6... Nd5 {[%clk 0:02:46.9]}
7. Nxd5 {[%clk 0:02:59.9]} 7... cxd5 {[%clk 0:02:47.4]} 8. d4 {[%clk 0:02:59.2]}
8... e6 {[%clk 0:02:48.4]} 9. c4 {[%clk 0:02:56.1]} 9... dxc4 {[%clk 0:02:47.8]}
10. Bxc4 {[%clk 0:02:56.1]} 10... d5 {[%clk 0:02:48.4]} 11. Bb5 {[%clk
0:02:54.9]} 11... Qa5+ {[%clk 0:02:47.1]} 12. Qd2 {[%clk 0:02:48.3]} 12... Qxb5
{[%clk 0:02:47]} 13. Rc1 {[%clk 0:02:44.9]} 13... Nd7 {[%clk 0:02:36.5]} 14. Ba3
{[%clk 0:02:44.7]} 14... Re8 {[%clk 0:02:35.8]} 15. Qe2 {[%clk 0:02:41.9]} 15...
Qxe2+ {[%clk 0:02:35.9]} 16. Kxe2 {[%clk 0:02:43.8]} 16... Nb6 {[%clk 0:02:32]}
17. Rc7 {[%clk 0:02:43.6]} 17... Bd7 {[%clk 0:02:28.4]} 18. Rxb7 {[%clk
0:02:42.6]} 18... Bc6 {[%clk 0:02:17.9]} 19. Rc7 {[%clk 0:02:41.8]} 19... Rec8
{[%clk 0:02:18.8]} 20. Rxc8+ {[%clk 0:02:38.8]} 20... Rxc8 {[%clk 0:02:19]} 21.
Rc1 {[%clk 0:02:40.3]} 21... Bb7 {[%clk 0:02:19.4]} 22. Bc5 {[%clk 0:02:39.9]}
22... Nd7 {[%clk 0:02:18.3]} 23. b4 {[%clk 0:02:38.2]} 23... Nxc5 {[%clk
0:02:14.2]} 24. dxc5 {[%clk 0:02:39.5]} 24... a6 {[%clk 0:02:12.5]} 25. a4
{[%clk 0:02:39.6]} 25... Bc6 {[%clk 0:02:13.4]} 26. Nd4 {[%clk 0:02:37.4]} 26...
Bxa4 {[%clk 0:02:08.4]} 27. Ra1 {[%clk 0:02:36.5]} 27... Bb5+ {[%clk 0:02:09.3]}
28. Nxb5 {[%clk 0:02:36.4]} 28... axb5 {[%clk 0:02:10.4]} 29. f4 {[%clk
0:02:38]} 29... g5 {[%clk 0:02:08.6]} 30. g3 {[%clk 0:02:38.4]} 30... gxf4
{[%clk 0:02:08.6]} 31. gxf4 {[%clk 0:02:40.3]} 31... f6 {[%clk 0:02:00]} 32. Ra6
{[%clk 0:02:36]} 32... fxe5 {[%clk 0:01:58.2]} 33. fxe5 {[%clk 0:02:36.7]} 33...
Bxe5 {[%clk 0:01:53.8]} 34. Rb6 {[%clk 0:02:25.4]} 34... Kf7 {[%clk 0:01:51.9]}
35. Rxb5 {[%clk 0:02:26.4]} 35... Rb8 {[%clk 0:01:53]} 36. Ra5 {[%clk
0:02:16.5]} 36... Rxb4 {[%clk 0:01:52.4]} 37. Ra7+ {[%clk 0:02:18]} 37... Kg6
{[%clk 0:01:52.7]} 38. Re7 {[%clk 0:02:18.9]} 38... Re4+ {[%clk 0:01:44.4]} 39.
Kd3 {[%clk 0:02:18.8]} 39... Bf6 {[%clk 0:01:44.1]} 40. Rd7 {[%clk 0:02:17.1]}
40... Rc4 {[%clk 0:01:41.8]} 41. Rc7 {[%clk 0:02:16.2]} 41... Bd4 {[%clk
0:01:38.1]} 42. c6 {[%clk 0:02:15.6]} 42... Be5 {[%clk 0:01:37.3]} 43. Rc8
{[%clk 0:02:16.8]} 43... Kf7 {[%clk 0:01:37]} 44. h3 {[%clk 0:02:15.7]} 44...
Ke7 {[%clk 0:01:36]} 45. Ke3 {[%clk 0:01:51]} 45... Rc3+ {[%clk 0:01:27.9]} 46.
Kf2 {[%clk 0:01:49.8]} 46... d4 {[%clk 0:01:28]} 47. Ke2 {[%clk 0:01:45.4]}
47... Bd6 {[%clk 0:01:27.2]} 48. Kd2 {[%clk 0:01:42]} 48... e5 {[%clk
0:01:26.2]} 49. Ke2 {[%clk 0:01:40.8]} 49... e4 {[%clk 0:01:26.8]} 50. Kd2
{[%clk 0:01:40.3]} 50... Be5 {[%clk 0:01:26.5]} 51. Ke2 {[%clk 0:01:41.5]} 51...
d3+ {[%clk 0:01:27.5]} 52. Kd2 {[%clk 0:01:42]} 52... Rc2+ {[%clk 0:01:28.4]}
53. Kd1 {[%clk 0:01:42.9]} 53... Bf4 {[%clk 0:01:24]} 54. c7 {[%clk 0:01:44.8]}
54... Rc1# {[%clk 0:01:25.1]} 0-1

[Event "*** Qualifier 3: Titled Tuesday 3|2 Blitz"]
[Site "Chess.com"]
[Date "2017.04.18"]
[Round "9"]
[White "NMJeevanK"]
[Black "GulamaliRises"]
[Result "0-1"]
[WhiteElo "2219"]
[BlackElo "2465"]
[TimeControl "180+2"]
[EndTime "14:58:15 PDT"]
[Termination "GulamaliRises won by checkmate"]

1. e4 {[%clk 0:03:02]} 1... d6 {[%clk 0:03:00.5]} 2. d4 {[%clk 0:03:03.1]} 2...
Nf6 {[%clk 0:03:01.9]} 3. Nd2 {[%clk 0:03:04.2]} 3... g6 {[%clk 0:02:57.9]} 4.
Bd3 {[%clk 0:03:05.4]} 4... Bg7 {[%clk 0:02:58.4]} 5. h3 {[%clk 0:03:06.9]} 5...
O-O {[%clk 0:02:59.4]} 6. Ngf3 {[%clk 0:03:08.3]} 6... Nc6 {[%clk 0:03:00.9]} 7.
c3 {[%clk 0:03:09.1]} 7... e5 {[%clk 0:03:02.1]} 8. O-O {[%clk 0:03:10.3]} 8...
Re8 {[%clk 0:03:00.9]} 9. Re1 {[%clk 0:03:11.2]} 9... Bd7 {[%clk 0:02:56.7]} 10.
a3 {[%clk 0:03:11.3]} 10... Nh5 {[%clk 0:02:51.9]} 11. Nf1 {[%clk 0:03:11.1]}
11... Nf4 {[%clk 0:02:53.1]} 12. Bxf4 {[%clk 0:03:09.7]} 12... exf4 {[%clk
0:02:55]} 13. Qb3 {[%clk 0:03:02.4]} 13... Na5 {[%clk 0:02:51.8]} 14. Qb4 {[%clk
0:02:55.6]} 14... c5 {[%clk 0:02:31.3]} 15. dxc5 {[%clk 0:02:52.4]} 15... dxc5
{[%clk 0:02:33.2]} 16. Qxc5 {[%clk 0:02:48.3]} 16... Nb3 {[%clk 0:02:33.4]} 17.
Qb4 {[%clk 0:02:30.3]} 17... Nxa1 {[%clk 0:02:33.6]} 18. Rxa1 {[%clk 0:02:32.2]}
18... Bxh3 {[%clk 0:02:32.5]} 19. Rd1 {[%clk 0:02:28.9]} 19... Be6 {[%clk
0:02:18.7]} 20. Qa4 {[%clk 0:02:23.5]} 20... Qb6 {[%clk 0:02:16.3]} 21. b4
{[%clk 0:02:21.8]} 21... Bxc3 {[%clk 0:02:10.3]} 22. Rc1 {[%clk 0:02:03.9]}
22... Bd4 {[%clk 0:01:56.7]} 23. Rc2 {[%clk 0:01:59.9]} 23... Red8 {[%clk
0:01:53]} 24. Ne1 {[%clk 0:01:39.8]} 24... Rac8 {[%clk 0:01:40]} 25. Re2 {[%clk
0:01:37.7]} 25... Bg4 {[%clk 0:01:38.9]} 26. Nf3 {[%clk 0:01:34]} 26... Bxf3
{[%clk 0:01:39]} 27. gxf3 {[%clk 0:01:35.9]} 27... Bxf2+ {[%clk 0:01:38]} 28.
Rxf2 {[%clk 0:01:34.1]} 28... Rxd3 {[%clk 0:01:39.9]} 29. Kg2 {[%clk 0:01:31]}
29... Qf6 {[%clk 0:01:28.9]} 30. Qb5 {[%clk 0:01:19.4]} 30... Rd1 {[%clk
0:01:25.8]} 31. Qxb7 {[%clk 0:01:04.6]} 31... Rcc1 {[%clk 0:01:25.2]} 32. Qb5
{[%clk 0:01:00.5]} 32... Qh4 {[%clk 0:01:14]} 33. Qb8+ {[%clk 0:00:53.1]} 33...
Kg7 {[%clk 0:01:13.5]} 34. Qe5+ {[%clk 0:00:54.7]} 34... Kh6 {[%clk 0:01:12.3]}
35. Qb5 {[%clk 0:00:20.8]} 35... Rxf1 {[%clk 0:01:08.2]} 36. Rxf1 {[%clk
0:00:18.1]} 36... Rc2+ {[%clk 0:01:08.7]} 37. Kg1 {[%clk 0:00:16.8]} 37... Qh2#
{[%clk 0:01:09.4]} 0-1

[Event "*** Qualifier 3: Titled Tuesday 3|2 Blitz"]
[Site "Chess.com"]
[Date "2017.04.18"]
[Round "9"]
[White "the_drake"]
[Black "mwpchess"]
[Result "0-1"]
[WhiteElo "2192"]
[BlackElo "2399"]
[TimeControl "180+2"]
[EndTime "14:58:27 PDT"]
[Termination "mwpchess won by resignation"]

1. e4 {[%clk 0:03:02]} 1... c6 {[%clk 0:03:00.1]} 2. d4 {[%clk 0:03:03]} 2... d5
{[%clk 0:03:00.6]} 3. Nd2 {[%clk 0:03:04.9]} 3... dxe4 {[%clk 0:03:01.3]} 4.
Nxe4 {[%clk 0:03:06.8]} 4... Bf5 {[%clk 0:03:02.3]} 5. Nc5 {[%clk 0:02:55]} 5...
e5 {[%clk 0:02:59.4]} 6. Nxb7 {[%clk 0:02:50.6]} 6... Qb6 {[%clk 0:02:59.6]} 7.
Nc5 {[%clk 0:02:51.5]} 7... exd4 {[%clk 0:03:00.3]} 8. Nb3 {[%clk 0:02:50.7]}
8... Bb4+ {[%clk 0:02:59.9]} 9. Bd2 {[%clk 0:02:50.6]} 9... Nf6 {[%clk
0:02:50.6]} 10. a3 {[%clk 0:02:48.1]} 10... Bxd2+ {[%clk 0:02:48.5]} 11. Qxd2
{[%clk 0:02:50]} 11... c5 {[%clk 0:02:48.2]} 12. Nf3 {[%clk 0:02:45]} 12... O-O
{[%clk 0:02:47.5]} 13. Be2 {[%clk 0:02:43]} 13... Nc6 {[%clk 0:02:44.8]} 14. O-O
{[%clk 0:02:36.8]} 14... a5 {[%clk 0:02:45]} 15. Bd3 {[%clk 0:02:32.2]} 15...
Be6 {[%clk 0:02:42.4]} 16. Qg5 {[%clk 0:02:26.6]} 16... Bxb3 {[%clk 0:02:39]}
17. cxb3 {[%clk 0:02:24.2]} 17... Qxb3 {[%clk 0:02:36.9]} 18. Rad1 {[%clk
0:02:18.7]} 18... c4 {[%clk 0:02:22.3]} 19. Bf5 {[%clk 0:02:14.2]} 19... d3
{[%clk 0:02:16.4]} 20. Nh4 {[%clk 0:02:04.8]} 20... Ne7 {[%clk 0:02:13.5]} 21.
Rfe1 {[%clk 0:01:53.1]} 21... Ng6 {[%clk 0:02:00.2]} 22. Bxg6 {[%clk 0:01:48.8]}
22... hxg6 {[%clk 0:01:59.9]} 23. Rb1 {[%clk 0:01:43.8]} 23... a4 {[%clk
0:01:55.7]} 24. Re7 {[%clk 0:01:39.4]} 24... Rfe8 {[%clk 0:01:47.5]} 25. Rc7
{[%clk 0:01:36]} 25... Rac8 {[%clk 0:01:44]} 26. Ra7 {[%clk 0:01:33.8]} 26...
Qb6 {[%clk 0:01:36.2]} 27. Rxa4 {[%clk 0:01:31]} 27... c3 {[%clk 0:01:34.8]} 28.
Rb4 {[%clk 0:01:16.2]} 28... c2 {[%clk 0:01:33.3]} 29. Rc1 {[%clk 0:01:17.2]}
29... Qd6 {[%clk 0:01:27]} 30. Nf3 {[%clk 0:01:10.4]} 30... Ne4 {[%clk
0:01:18.6]} 31. Rxe4 {[%clk 0:00:49.5]} 31... Rxe4 {[%clk 0:01:17.4]} 32. Kf1
{[%clk 0:00:47.2]} 32... Rce8 {[%clk 0:01:11.3]} 33. g3 {[%clk 0:00:41.7]} 33...
Re2 {[%clk 0:01:09.1]} 34. Nd2 {[%clk 0:00:37.8]} 34... Qd4 {[%clk 0:01:04.3]}
0-1

[Event "*** Qualifier 3: Titled Tuesday 3|2 Blitz"]
[Site "Chess.com"]
[Date "2017.04.18"]
[Round "9"]
[White "Cayse"]
[Black "Yaacovn"]
[Result "0-1"]
[WhiteElo "2628"]
[BlackElo "2616"]
[TimeControl "180+2"]
[EndTime "14:59:05 PDT"]
[Termination "Yaacovn won on time"]

1. e4 {[%clk 0:03:02]} 1... c6 {[%clk 0:03:01.3]} 2. d4 {[%clk 0:03:02.5]} 2...
d5 {[%clk 0:03:03.2]} 3. e5 {[%clk 0:03:03.8]} 3... Bf5 {[%clk 0:03:03.7]} 4.
Nf3 {[%clk 0:03:03.8]} 4... e6 {[%clk 0:03:05]} 5. Be2 {[%clk 0:03:04.8]} 5...
Ne7 {[%clk 0:03:06.5]} 6. O-O {[%clk 0:03:05.3]} 6... Bg6 {[%clk 0:03:08.1]} 7.
Nbd2 {[%clk 0:03:05.6]} 7... Nf5 {[%clk 0:03:09.4]} 8. Nb3 {[%clk 0:03:01.1]}
8... a6 {[%clk 0:03:08.7]} 9. Bd2 {[%clk 0:02:36.1]} 9... Nd7 {[%clk 0:03:07.8]}
10. c4 {[%clk 0:02:36.4]} 10... dxc4 {[%clk 0:03:08.3]} 11. Na5 {[%clk
0:02:36.6]} 11... b5 {[%clk 0:03:02.9]} 12. Nxc6 {[%clk 0:02:23.8]} 12... Qc7
{[%clk 0:03:02.9]} 13. Na5 {[%clk 0:02:19.4]} 13... c3 {[%clk 0:02:58.8]} 14.
Bxc3 {[%clk 0:02:10.5]} 14... b4 {[%clk 0:03:00]} 15. Qa4 {[%clk 0:02:08.3]}
15... bxc3 {[%clk 0:02:59.9]} 16. bxc3 {[%clk 0:02:02.8]} 16... Qxc3 {[%clk
0:02:54.1]} 17. Rab1 {[%clk 0:01:42.7]} 17... Nxd4 {[%clk 0:02:06.3]} 18. Nxd4
{[%clk 0:01:22.7]} 18... Bxb1 {[%clk 0:02:07.4]} 19. Rxb1 {[%clk 0:01:17.9]}
19... Bc5 {[%clk 0:02:05.2]} 20. Nab3 {[%clk 0:01:09.8]} 20... O-O {[%clk
0:01:43.4]} 21. Bf3 {[%clk 0:00:24.3]} 21... Rab8 {[%clk 0:01:25.4]} 22. Qxd7
{[%clk 0:00:19.8]} 22... Rbd8 {[%clk 0:01:21.2]} 23. Qa4 {[%clk 0:00:13.6]}
23... Bxd4 {[%clk 0:01:22]} 24. Nxd4 {[%clk 0:00:14.5]} 24... Qxd4 {[%clk
0:01:21.7]} 25. Qxa6 {[%clk 0:00:13.6]} 25... Qxe5 {[%clk 0:01:17.8]} 26. a4
{[%clk 0:00:14.1]} 26... g6 {[%clk 0:01:14.5]} 27. h3 {[%clk 0:00:14.9]} 27...
Rd2 {[%clk 0:01:13.5]} 28. Qb6 {[%clk 0:00:15.3]} 28... Ra2 {[%clk 0:01:11.5]}
29. Qb3 {[%clk 0:00:13.1]} 29... Ra1 {[%clk 0:01:05.8]} 30. Rxa1 {[%clk
0:00:12.4]} 30... Qxa1+ {[%clk 0:01:07.7]} 31. Kh2 {[%clk 0:00:13.9]} 31... Rc8
{[%clk 0:01:05.2]} 32. Qb7 {[%clk 0:00:13.2]} 32... Rc1 {[%clk 0:01:04.2]} 33.
Qa8+ {[%clk 0:00:12.9]} 33... Kg7 {[%clk 0:01:05]} 34. Qe4 {[%clk 0:00:13.5]}
34... h5 {[%clk 0:00:56.4]} 35. h4 {[%clk 0:00:14]} 35... Rh1+ {[%clk
0:00:54.1]} 36. Kg3 {[%clk 0:00:14.8]} 36... Qf6 {[%clk 0:00:51.9]} 37. a5
{[%clk 0:00:14.6]} 37... Ra1 {[%clk 0:00:50]} 0-1

[Event "*** Qualifier 3: Titled Tuesday 3|2 Blitz"]
[Site "Chess.com"]
[Date "2017.04.18"]
[Round "9"]
[White "Marcus_Harvey"]
[Black "djano"]
[Result "0-1"]
[WhiteElo "2513"]
[BlackElo "2419"]
[TimeControl "180+2"]
[EndTime "14:59:13 PDT"]
[Termination "djano won by resignation"]

1. d4 {[%clk 0:03:02]} 1... f5 {[%clk 0:02:59.2]} 2. Nf3 {[%clk 0:03:01.3]} 2...
Nf6 {[%clk 0:02:57.8]} 3. g3 {[%clk 0:03:02]} 3... e6 {[%clk 0:02:57.2]} 4. Bg2
{[%clk 0:03:03.2]} 4... d5 {[%clk 0:02:58.2]} 5. O-O {[%clk 0:03:04.3]} 5... Bd6
{[%clk 0:02:59.4]} 6. c4 {[%clk 0:03:00.6]} 6... c6 {[%clk 0:03:00.1]} 7. b3
{[%clk 0:02:58.7]} 7... Qe7 {[%clk 0:02:59.9]} 8. Bf4 {[%clk 0:02:56.2]} 8...
O-O {[%clk 0:02:56.2]} 9. Bxd6 {[%clk 0:02:55.3]} 9... Qxd6 {[%clk 0:02:57]} 10.
Nbd2 {[%clk 0:02:53.5]} 10... Nbd7 {[%clk 0:02:57.3]} 11. Qc2 {[%clk 0:02:50.7]}
11... a5 {[%clk 0:02:57.4]} 12. e3 {[%clk 0:02:50.4]} 12... Ne4 {[%clk
0:02:56.6]} 13. Nxe4 {[%clk 0:02:47.3]} 13... fxe4 {[%clk 0:02:56.9]} 14. Nd2
{[%clk 0:02:48.9]} 14... Nf6 {[%clk 0:02:48.1]} 15. h3 {[%clk 0:02:44.4]} 15...
Bd7 {[%clk 0:02:47.2]} 16. Kh2 {[%clk 0:02:30.5]} 16... Kh8 {[%clk 0:02:46.8]}
17. f4 {[%clk 0:02:25.6]} 17... exf3 {[%clk 0:02:46.8]} 18. Nxf3 {[%clk
0:02:25.7]} 18... a4 {[%clk 0:02:17.9]} 19. c5 {[%clk 0:02:26.2]} 19... Qe7
{[%clk 0:02:08.2]} 20. b4 {[%clk 0:02:27.3]} 20... Be8 {[%clk 0:02:00.1]} 21.
Ne5 {[%clk 0:02:27.8]} 21... a3 {[%clk 0:01:35.7]} 22. Rf2 {[%clk 0:01:59]}
22... Nd7 {[%clk 0:01:32.4]} 23. Nxd7 {[%clk 0:01:56.4]} 23... Bxd7 {[%clk
0:01:29.4]} 24. Raf1 {[%clk 0:01:55.9]} 24... Rxf2 {[%clk 0:01:25.7]} 25. Qxf2
{[%clk 0:01:52.8]} 25... Kg8 {[%clk 0:01:16.3]} 26. Qf4 {[%clk 0:01:50.2]} 26...
Be8 {[%clk 0:00:51.8]} 27. h4 {[%clk 0:01:45]} 27... Bg6 {[%clk 0:00:52.2]} 28.
Bh3 {[%clk 0:01:46.1]} 28... Re8 {[%clk 0:00:47.3]} 29. Qe5 {[%clk 0:01:39.4]}
29... h6 {[%clk 0:00:42.9]} 30. h5 {[%clk 0:01:34.7]} 30... Bd3 {[%clk 0:00:43]}
31. Rf2 {[%clk 0:01:35.8]} 31... Kh8 {[%clk 0:00:37.6]} 32. Bxe6 {[%clk
0:01:25.4]} 32... Qxe6 {[%clk 0:00:39.5]} 33. Rf8+ {[%clk 0:01:25.9]} 33... Rxf8
{[%clk 0:00:41.1]} 34. Qxe6 {[%clk 0:01:27.1]} 34... Rf2+ {[%clk 0:00:42.6]} 35.
Kg1 {[%clk 0:01:19.9]} 35... Rxa2 {[%clk 0:00:42.5]} 36. Qc8+ {[%clk 0:01:01.2]}
36... Kh7 {[%clk 0:00:42.5]} 37. Qa8 {[%clk 0:01:00.5]} 37... Ra1+ {[%clk
0:00:38.2]} 38. Kg2 {[%clk 0:01:00.7]} 38... a2 {[%clk 0:00:34.6]} 39. g4 {[%clk
0:00:37.7]} 39... Be4+ {[%clk 0:00:32.1]} 40. Kg3 {[%clk 0:00:25.8]} 40... Rg1+
{[%clk 0:00:31.5]} 41. Kf4 {[%clk 0:00:26.7]} 41... a1=Q {[%clk 0:00:32.4]} 0-1

[Event "*** Qualifier 3: Titled Tuesday 3|2 Blitz"]
[Site "Chess.com"]
[Date "2017.04.18"]
[Round "9"]
[White "Vamostodorecto"]
[Black "rithwik2002"]
[Result "1-0"]
[WhiteElo "2388"]
[BlackElo "1813"]
[TimeControl "180+2"]
[EndTime "14:59:14 PDT"]
[Termination "Vamostodorecto won by resignation"]

1. d4 {[%clk 0:03:02]} 1... Nf6 {[%clk 0:02:58.7]} 2. c4 {[%clk 0:03:02]} 2...
e6 {[%clk 0:02:59.4]} 3. Nc3 {[%clk 0:03:02.6]} 3... d5 {[%clk 0:02:59.3]} 4.
cxd5 {[%clk 0:03:03.1]} 4... exd5 {[%clk 0:02:59.4]} 5. Bg5 {[%clk 0:03:02.9]}
5... Nbd7 {[%clk 0:03:00.7]} 6. e3 {[%clk 0:03:03.2]} 6... c6 {[%clk 0:03:00.1]}
7. Bd3 {[%clk 0:03:03.9]} 7... Be7 {[%clk 0:03:01.5]} 8. Qc2 {[%clk 0:03:04.9]}
8... O-O {[%clk 0:03:02.6]} 9. Nge2 {[%clk 0:03:05.5]} 9... Re8 {[%clk
0:03:01.9]} 10. O-O {[%clk 0:03:06.4]} 10... Nf8 {[%clk 0:02:20.7]} 11. f3
{[%clk 0:03:06.7]} 11... Be6 {[%clk 0:02:16.6]} 12. Kh1 {[%clk 0:03:04.8]} 12...
Rc8 {[%clk 0:02:09.3]} 13. Rad1 {[%clk 0:03:01.1]} 13... Ng6 {[%clk 0:02:05.3]}
14. a3 {[%clk 0:03:01.4]} 14... Nd7 {[%clk 0:01:58.6]} 15. Bxe7 {[%clk 0:03:00]}
15... Qxe7 {[%clk 0:01:55.8]} 16. e4 {[%clk 0:02:58.8]} 16... dxe4 {[%clk
0:01:49.2]} 17. fxe4 {[%clk 0:03:00.7]} 17... Rcd8 {[%clk 0:01:40.4]} 18. h3
{[%clk 0:02:44.1]} 18... Nf6 {[%clk 0:00:38.1]} 19. b4 {[%clk 0:02:30.6]} 19...
Nh5 {[%clk 0:00:22.3]} 20. d5 {[%clk 0:02:21.8]} 20... Bc8 {[%clk 0:00:20.2]}
21. dxc6 {[%clk 0:02:10.4]} 21... bxc6 {[%clk 0:00:21.1]} 22. Bc4 {[%clk
0:02:04.9]} 22... Be6 {[%clk 0:00:20.9]} 23. Na4 {[%clk 0:02:02.4]} 23... Bxc4
{[%clk 0:00:20.1]} 24. Qxc4 {[%clk 0:02:04.3]} 24... Qh4 {[%clk 0:00:20.2]} 25.
Qxf7+ {[%clk 0:01:59.3]} 25... Kh8 {[%clk 0:00:20.9]} 26. Rxd8 {[%clk
0:01:59.6]} 26... Rxd8 {[%clk 0:00:22.8]} 27. Nc5 {[%clk 0:01:53.3]} 27... Ng3+
{[%clk 0:00:16.1]} 28. Nxg3 {[%clk 0:01:52.8]} 28... Qxg3 {[%clk 0:00:18]} 29.
Ne6 {[%clk 0:01:50.1]} 29... Rg8 {[%clk 0:00:18.8]} 30. Qf3 {[%clk 0:01:34.5]}
30... Qe5 {[%clk 0:00:16.2]} 31. Nc5 {[%clk 0:01:31.1]} 31... Nh4 {[%clk
0:00:13.8]} 32. Qg4 {[%clk 0:01:25.9]} 32... Ng6 {[%clk 0:00:11.1]} 33. Rf5
{[%clk 0:01:24.5]} 33... Qa1+ {[%clk 0:00:11.1]} 34. Kh2 {[%clk 0:01:25.1]}
34... Qxa3 {[%clk 0:00:12.2]} 35. Rh5 {[%clk 0:01:23.1]} 35... Nf8 {[%clk
0:00:11.7]} 36. e5 {[%clk 0:01:15.2]} 36... Qa2 {[%clk 0:00:06.6]} 37. e6 {[%clk
0:01:13.5]} 37... Qb2 {[%clk 0:00:06.2]} 38. e7 {[%clk 0:01:11]} 38... Ng6
{[%clk 0:00:06.2]} 39. Rxh7+ {[%clk 0:01:02.1]} 1-0

[Event "*** Qualifier 3: Titled Tuesday 3|2 Blitz"]
[Site "Chess.com"]
[Date "2017.04.18"]
[Round "9"]
[White "ChristopherYoo"]
[Black "Quiet_Desperation"]
[Result "1-0"]
[WhiteElo "2271"]
[BlackElo "2031"]
[TimeControl "180+2"]
[EndTime "14:59:14 PDT"]
[Termination "ChristopherYoo won by resignation"]

1. e4 {[%clk 0:03:02]} 1... Nc6 {[%clk 0:03:00.8]} 2. Nf3 {[%clk 0:02:58]} 2...
d6 {[%clk 0:03:01.5]} 3. d4 {[%clk 0:02:58.3]} 3... Nf6 {[%clk 0:02:59]} 4. Nc3
{[%clk 0:02:58.1]} 4... d5 {[%clk 0:02:45]} 5. e5 {[%clk 0:02:57.9]} 5... Ne4
{[%clk 0:02:46.3]} 6. Bd3 {[%clk 0:02:56.2]} 6... Bf5 {[%clk 0:02:47]} 7. Qe2
{[%clk 0:02:54.8]} 7... Nxc3 {[%clk 0:02:46.6]} 8. bxc3 {[%clk 0:02:55.9]} 8...
Bg4 {[%clk 0:02:47.6]} 9. h3 {[%clk 0:02:55]} 9... Bh5 {[%clk 0:02:48.4]} 10.
Bf4 {[%clk 0:02:44.6]} 10... e6 {[%clk 0:02:46.1]} 11. O-O {[%clk 0:02:43]}
11... Be7 {[%clk 0:02:46.1]} 12. Qe3 {[%clk 0:02:32.8]} 12... O-O {[%clk
0:02:43.1]} 13. Ng5 {[%clk 0:02:30.6]} 13... Bxg5 {[%clk 0:02:37.5]} 14. Bxg5
{[%clk 0:02:31.3]} 14... Qd7 {[%clk 0:02:37.7]} 15. g4 {[%clk 0:02:00.7]} 15...
Bg6 {[%clk 0:02:37.5]} 16. f4 {[%clk 0:02:00.7]} 16... Bxd3 {[%clk 0:02:26.8]}
17. cxd3 {[%clk 0:01:55]} 17... f6 {[%clk 0:02:19.6]} 18. exf6 {[%clk
0:01:37.5]} 18... gxf6 {[%clk 0:02:21.5]} 19. Bh6 {[%clk 0:01:38.5]} 19... Rfe8
{[%clk 0:02:22.3]} 20. Qg3 {[%clk 0:01:24.9]} 20... Qf7 {[%clk 0:02:19.1]} 21.
f5 {[%clk 0:01:20.5]} 21... e5 {[%clk 0:02:19.2]} 22. dxe5 {[%clk 0:01:05.1]}
22... Nxe5 {[%clk 0:02:17.1]} 23. Rae1 {[%clk 0:00:46]} 23... c5 {[%clk
0:02:08.2]} 24. g5 {[%clk 0:00:46.8]} 24... Kh8 {[%clk 0:02:06.4]} 25. gxf6
{[%clk 0:00:37.3]} 25... Qxf6 {[%clk 0:02:07.6]} 26. Bg5 {[%clk 0:00:33.5]}
26... Qd6 {[%clk 0:01:54.1]} 27. Re3 {[%clk 0:00:19.4]} 27... d4 {[%clk
0:01:50.4]} 28. cxd4 {[%clk 0:00:19.3]} 28... cxd4 {[%clk 0:01:45.5]} 29. Re4
{[%clk 0:00:20.1]} 29... Rg8 {[%clk 0:01:43.2]} 30. Kh2 {[%clk 0:00:13]} 30...
Rxg5 {[%clk 0:01:34.1]} 31. Qxe5+ {[%clk 0:00:11.9]} 31... Qxe5+ {[%clk
0:01:32.4]} 32. Rxe5 {[%clk 0:00:13.1]} 32... Rc8 {[%clk 0:01:30.9]} 33. Rf2
{[%clk 0:00:14]} 33... Rf8 {[%clk 0:01:18.8]} 34. h4 {[%clk 0:00:13.2]} 34...
Rh5 {[%clk 0:01:17.7]} 35. Kh3 {[%clk 0:00:13.4]} 35... Rh6 {[%clk 0:01:17.4]}
36. Re4 {[%clk 0:00:14]} 36... Rhf6 {[%clk 0:01:17.7]} 37. Kg4 {[%clk 0:00:15]}
37... Rg8+ {[%clk 0:01:16.6]} 38. Kf4 {[%clk 0:00:15.8]} 38... Rxf5+ {[%clk
0:01:17.3]} 39. Kxf5 {[%clk 0:00:17]} 39... Rf8+ {[%clk 0:01:19.2]} 40. Kg5
{[%clk 0:00:18.2]} 40... Rxf2 {[%clk 0:01:21.1]} 41. Rxd4 {[%clk 0:00:18.9]}
41... Rf7 {[%clk 0:01:20.4]} 42. Rd8+ {[%clk 0:00:18.9]} 42... Kg7 {[%clk
0:01:21.2]} 43. Rd6 {[%clk 0:00:18]} 43... Rc7 {[%clk 0:01:21.4]} 44. h5 {[%clk
0:00:18.7]} 44... h6+ {[%clk 0:01:21.1]} 45. Kg4 {[%clk 0:00:18.7]} 45... Kh7
{[%clk 0:01:18]} 46. d4 {[%clk 0:00:19.4]} 46... Rg7+ {[%clk 0:01:16.5]} 47. Kf4
{[%clk 0:00:20.5]} 47... Rg5 {[%clk 0:01:16.9]} 48. Rd7+ {[%clk 0:00:21]} 48...
Kg8 {[%clk 0:01:17.7]} 49. Rxb7 {[%clk 0:00:21]} 49... Rxh5 {[%clk 0:01:19.4]}
50. Rxa7 {[%clk 0:00:21.7]} 50... Rd5 {[%clk 0:01:18.1]} 51. Ke4 {[%clk
0:00:22.5]} 51... Rd6 {[%clk 0:01:18.9]} 52. Ke5 {[%clk 0:00:23.1]} 52... Rg6
{[%clk 0:01:20]} 53. d5 {[%clk 0:00:23.3]} 53... h5 {[%clk 0:01:21.6]} 54. d6
{[%clk 0:00:23.6]} 54... h4 {[%clk 0:01:23.3]} 55. d7 {[%clk 0:00:24]} 55...
Rg5+ {[%clk 0:01:24.4]} 56. Kd6 {[%clk 0:00:23.3]} 1-0